Cogmind - Beta 13 @@@ ROGUE MODE // 2024.04.13 @ 10:42:55 Player: Kafouille Result: Destroyed by 7S-W0G(R) with Subdweller Machine Gun Performance ------------- Evolutions (0) 0 Regions Visited (1) 200 Robots Destroyed (16) 80 Value Destroyed (434) 434 Prototype IDs (0) 0 Alien Tech Used (0) 0 Bonus (0) 0 TOTAL SCORE: 714 Bonus ------- None Cogmind --------- Core Integrity 0/250 Matter 265/300 Energy 80/100 System Corruption 1% Temperature Cool (0) Movement Walking (120) Location -10/Materials Parts ------- > --- POWER (1) -------- (None) > --- PROPULSION (2) --- Aluminum Leg > --- UTILITY (2) ------ Small Storage Unit > --- WEAPON (2) ------- Light Assault Rifle Light Assault Rifle > --- INVENTORY (8) ---- Ion Engine Ion Engine Aluminum Leg Heat Sink EM Pulse Gun Peak State ------------ > --- POWER ------------ Light Ion Engine > --- PROPULSION ------- Aluminum Leg Aluminum Leg > --- UTILITY ---------- Heat Sink Small Storage Unit > --- WEAPON ----------- Particle Gun Assault Rifle > --- INVENTORY -------- Ion Engine Aluminum Leg Heat Sink Light Armor Plating EM Pulse Gun Light Assault Rifle Light Assault Rifle Light Assault Rifle [Rating: 8] Favorites ----------- Power Light Ion Engine Engine Light Ion Engine Propulsion Aluminum Leg Leg Aluminum Leg Utility Small Storage Unit Device Heat Sink Storage Small Storage Unit Protection Light Armor Plating Weapon Assault Rifle Energy Gun Particle Gun Ballistic Gun Assault Rifle Build | -11 -10 ------- Run | Yrd Mat Slots Evolved . | . . Power . | . . Propulsion . | . . Utility . | . . Weapon . | . . Parts Attached 17 | 6 11 Power 3 | 1 2 Engine 3 | 1 2 Core . | . . Reactor . | . . Propulsion 5 | 2 3 Treads . | . . Leg 5 | 2 3 Wheel . | . . Hover . | . . Flight . | . . Utility 4 | 1 3 Device 2 | . 2 Storage 1 | 1 . Processor . | . . Hackware . | . . Protection 1 | . 1 Artifact . | . . Weapon 5 | 2 3 Energy Gun 1 | . 1 Energy Cannon . | . . Ballistic Gun 4 | 2 2 Ballistic Cannon . | . . Launcher . | . . Special Weapon . | . . Impact Weapon . | . . Slashing Weapon . | . . Piercing Weapon . | . . Special Melee Weapon . | . . Unidentified Prototypes . | . . Parts Lost 7 | . 7 Power 1 | . 1 Propulsion 2 | . 2 Utility 2 | . 2 Weapon 2 | . 2 Highest Loss Streak 5 | . 5 To Critical Strikes . | . . Average Slot Usage (%) 96 | . 96 Engine 13 | . 13 Leg 28 | . 28 Device 11 | . 11 Storage 14 | . 14 Energy Gun 1 | . 1 Ballistic Gun 26 | . 26 Naked Turns . | . . Heaviest Build 14 | 11 14 Greatest Support 20 | 20 20 Greatest Overweight (x) . | . . Average Overweight (x) . | . . Largest Inventory Capacity 8 | 8 8 Average Capacity 7 | 6 8 Most Carried 8 | 5 8 Average Carried 7 | 2 7 Final Capacity 8 | 8 8 Final Carried 5 | 4 5 Class Distribution -------------------- 94% | Mutant 5% | Scavenger-Mutant Dominant Class ---------------- Mutant | -10/Materials Resources | -11 -10 ----------- Run | Yrd Mat Matter Collected 617 | 156 461 Remotely . | . . Salvage Created 596 | . 596 Parts 35 | . 35 Haulers Intercepted . | . . Recyclers Shooed 3 | . 3 Parts Field Recycled . | . . Retrieved Matter . | . . Parts Self-Destructed . | . . Prevented . | . . Kills | -11 -10 ------- Run | Yrd Mat Combat Hostiles Destroyed 13 | . 13 Guns 13 | . 13 Classes Destroyed 5 | . 5 Recycler 1 | . 1 Operator 1 | . 1 Watcher 1 | . 1 Swarmer 3 | . 3 Grunt 10 | . 10 Best Kill Streak 2 | . 2 Combat Bots Only 2 | . 2 Max Kills in Single Turn 1 | . 1 Gunslinging . | . . Exploded . | . . Melee . | . . Uniques/NPCs Destroyed . | . . Combat | -11 -10 -------- Run | Yrd Mat Hostile Shots Fired 125 | . 125 Missed 40 | . 40 Damage Taken 1178 | . 1178 Core 254 | . 254 Absorbed by Shields . | . . Core Remaining (%) 100 | 100 . Volleys Fired 83 | . 83 Largest 2 | . 2 Hottest 85 | . 85 Shots Fired 165 | . 165 Gun 165 | . 165 Cannon . | . . Launcher . | . . Special . | . . Kinetic 157 | . 157 Thermal 8 | . 8 Explosive . | . . Electromagnetic . | . . Robot Hit Streak 10 | . 10 Robot Miss Streak 4 | . 4 Penetration Max . | . . Secondary Targets 1 | . 1 Max Gunslinging Chain 1 | . 1 Shots Hit Robots 95 | . 95 Core Hits 34 | . 34 Critical Kills . | . . Critical Parts Destroyed 1 | . 1 Critical Strikes 2 | . 2 Burn 1 | . 1 Destroy 1 | . 1 Melee Attacks . | . . Impact . | . . Slashing . | . . Piercing . | . . Sneak Attacks . | . . Combat Hostiles . | . . Follow-up Attacks . | . . Damage Inflicted 1022 | . 1022 Guns 1015 | . 1015 Cannons . | . . Explosions . | . . Melee . | . . Ramming 7 | . 7 Kinetic 950 | . 950 Thermal 65 | . 65 Explosive . | . . Electromagnetic . | . . Impact . | . . Slashing . | . . Piercing . | . . Highest Corruption 1 | . 1 Average Corruption 1 | . 1 Corruption Purged . | . . Corruption Blocked . | . . Effects 5 | . 5 Matter Fused 1 | . 1 Heat Flow Errors 1 | . 1 Energy Discharges 1 | . 1 Data Loss (major) 1 | . 1 Weapon Failures 1 | . 1 Overload Shots . | . . Overflow Damage . | . . Projectiles . | . . Explosions . | . . Melee . | . . Knockbacks . | . . Impact . | . . Kinetic . | . . Secondary . | . . Self-Inflicted Damage . | . . Shots . | . . Rammed . | . . Targets Rammed 2 | . 2 Kicked 2 | . 2 Crushed . | . . Highest Temperature 274 | . 274 Average Temperature 46 | . 46 Received Heat Transfer 294 | . 294 Siege Activations . | . . Robots Corrupted . | . . Combat Hostiles . | . . Parts Fried . | . . Impact Corruptions . | . . Robots Melted . | . . Combat Hostiles . | . . Parts Melted . | . . Heat Transferred 222 | . 222 Parts Sabotaged . | . . Parts Stolen . | . . Parts Stripped . | . . Power Chain Reactions . | . . Alert | -11 -10 ------- Run | Yrd Mat Peak Influence 238 | . 238 Initial . | . . Average 107 | . 115 Maximum Alert Level 1 | . 1 Low Security (%) 96 | 100 96 Level 1 3 | . 3 Level 2 . | . . Level 3 . | . . Level 4 . | . . Level 5 . | . . High Security . | . . Max Security . | . . Squads Dispatched 2 | . 2 Investigation . | . . Extermination . | . . Reinforcement 2 | . 2 Assault . | . . Garrison . | . . Intercept . | . . Searches Triggered . | . . Construction Impeded . | . . Haulers Reinforced . | . . Active Scanning Responses . | . . Cargo Convoy Interrupts . | . . Stealth | -11 -10 --------- Run | Yrd Mat Distress Signals 1 | . 1 Communications Jammed . | . . Distress Signals . | . . Times Spotted 35 | . 35 Peak Tracking Total 4 | . 4 Tactical Retreats 6 | . 6 Traps | -11 -10 ------- Run | Yrd Mat Traps Triggered 1 | . 1 Indirectly . | . . Trap Hack Attempts . | . . Triggered . | . . Disarmed . | . . Reprogrammed . | . . Reused . | . . Traps Extracted . | . . Installed . | . . Triggered . | . . Machines | -11 -10 ---------- Run | Yrd Mat Machines Disabled . | . . Max in Single Turn . | . . Machines Repaired . | . . Machines Dismantled . | . . Machines Sabotaged . | . . Overloaded Fab Kills . | . . Hacking | -11 -10 --------- Run | Yrd Mat Machines Accessed . | . . Terminals . | . . Fabricators . | . . Repair Stations . | . . Recycling Units . | . . Scanalyzers . | . . Garrison Access . | . . Total Hacks . | . . Successful . | . . Failed . | . . Catastrophic . | . . Database Lockouts . | . . Manual . | . . Terminals . | . . Fabricators . | . . Repair Stations . | . . Recycling Units . | . . Scanalyzers . | . . Garrison Access . | . . Terminal Hacks . | . . Fabricator Hacks . | . . Repair Station Hacks . | . . Recycling Unit Hacks . | . . Scanalyzer . | . . Garrison Access Hacks . | . . Unauthorized Hacks . | . . Terminals . | . . Fabricators . | . . Repair Stations . | . . Recycling Units . | . . Scanalyzers . | . . Garrison Access . | . . Data Cores Recovered . | . . Used . | . . Hacking Detections . | . . Full Trace Events . | . . Feedback Events . | . . Feedback Blocked . | . . Robot Schematics Acquired . | . . Robots Built . | . . Authchips . | . . Time . | . . Total Robot Build Rating . | . . Part Schematics Acquired . | . . Parts Built . | . . Authchips . | . . Time . | . . Total Part Build Rating . | . . Parts Repaired . | . . Time . | . . Parts Recycled . | . . Recycled Matter . | . . Retrieved Matter . | . . Retrieved Components . | . . Parts Scanalyzed . | . . Part Schematics Acquired . | . . Parts Damaged . | . . Bothacking | -11 -10 ------------ Run | Yrd Mat Used RIF Installer . | . . Robots Hacked . | . . Non-combat . | . . Combat . | . . Robot Hacks Applied . | . . Relay Couplers Released . | . . Fabnet Peak Effective % . | . . Robots Rewired . | . . Allies Hacked . | . . Hacks Repelled . | . . Allies | -11 -10 -------- Run | Yrd Mat Total Allies . | . . Largest Group . | . . Highest-Rated Group . | . . Highest-Rated Ally . | . . Total Orders . | . . Ally Attacks . | . . Total Damage . | . . Kills . | . . Allies Corrupted . | . . Allies Melted . | . . Intel | -11 -10 ------- Run | Yrd Mat Robot Analysis Total . | . . Derelict Logs Recovered . | . . Drone Launches . | . . Drone Recoveries . | . . Exploration | -11 -10 ------------- Run | Yrd Mat Turns Passed 962 | 69 893 Spaces Moved 529 | 52 477 Core 10 | 10 . Treads . | . . Legs 519 | 42 477 Wheels . | . . Hover . | . . Flight . | . . Fastest Speed 50 | 50 120 Average Speed 118 | 106 120 Slowest Speed 120 | 120 120 Overloaded Moves . | . . Propulsion Burnouts . | . . Robots Hopped . | . . Cave-ins Triggered . | . . Exploration Rate (%) 30 | 3 58 Regions Visited 1 Branch Regions . Pre-discovered Areas . | . . Known Exits Taken . | . . Unknown Exits Taken 1 | 1 . Scrap Searched . | . . Spaces Dug . | . . Terrain Destroyed . | . . Melee . | . . Projectile . | . . AOE . | . . Terrain Rammed . | . . Walls Destroyed . | . . Machines Disabled . | . . Actions | -11 -10 --------- Run | Yrd Mat Total 713 | 64 649 Wait 57 | . 57 Move 528 | 51 477 Hop . | . . Pick Up 17 | 7 10 Fast Attach 5 | 3 2 Attach 7 | 3 4 Detach . | . . Swap 5 | . 5 Drop 9 | . 9 Fire 83 | . 83 Melee . | . . Ram . | . . Kick 2 | . 2 Crush . | . . Escape Stasis . | . . Rewire . | . . Trap . | . . Miscellaneous . | . . Route ------- -11/Scrapyard -10/Materials (discovered 1 exit: [*Mat]) History --------- Turn | Location | Event 8 | -11/Scrapyard | Discovered new exit (range 16) 70 | -11/Scrapyard | Entered Materials 314 | -10/Materials | Build established: Mutant 717 | -10/Materials | Discovered new exit (range 4) 770 | -10/Materials | Derelicts attacked the area 910 | -10/Materials | Core integrity fell below 50% 951 | -10/Materials | Core integrity fell below 20% 963 | -10/Materials | Destroyed by 7S-W0G(R) with Subdweller Machine Gun Last Messages --------------- 00869_ The floor emits a surge of raw power. 00872_ 4V-RBV(R) misfires. 00878_ System corrupted: Energy discharge (-42). 00902_ Acquired Ion Engine. 00906_ Y3-8CT(R) misfires. 00910_ Y3-8CT(R) suffers critical hit (Burn). 00911_ Heat Sink destroyed. 00913_ Acquired 44 matter. 00914_ Y3-8CT(R) IFF system glitched. 00935_ U-05 Engineer builds a Wall. 00935_ 4V-RBV(R) IFF system glitched. 00936_ Y3-8CT(R) misfires. 00937_ Kicked U-05 Engineer out of the way. 00949_ Lgt. Ion Engine destroyed. 00954_ Assault Rifle destroyed. 00955_ Critical hit (Destroy). 00956_ Particle Gun destroyed. 00958_ Y3-8CT(R) misfires. 00961_ Lgt. Armor Plating destroyed. 00962_ Aluminum Leg destroyed. Map ----- +----------------------------------------------------+ | ??????????????????????##### """ # # ## | | ??????????????????????# # # # [ ## # | | ??????????????????????# # # #####+###### # | | ??????????????????????# ####### ### ##### # | | ??????????????????????# # | | ??????????????? | | ??????????? """ """ ### ##+##+## | | ??????????? ####### """ """ #?## ## | | ?????????? ?????????# """ """ #??# ## """ | | ??????????????????????# #??# ## """ | | ??????????????????????# #??# ## """ | | ??????????????????????#% ##########??# ## | | ??????????????????????#! #???????????## ##* | | ??????????????????????# #????????????# ## | | ??????????????????????# #????????????# ## | | ??????????????????????# #??????????###+######### | | ??????????????????????# #??????????# #?? | | ??????????????????###?# #??????????# ##? | | ???????????????????"" # +??????????# "#? | | ????????????????????" # #??????????# T#? | | ????????????????????? ; #??????????#!! "#? | | ??????????????????????; #??????????#![ ##? | | ??????????????????????# #########??# * #?? | | ??????????????????????# # #??# [[*[ #?? | | ??????????????????????# # ########+####### | | ??????????????????????# @R ""T"" # + #??# | | ???????????????###????# # """"" # """ #= #??# | | ???????????????# ???# # # """ #= #??# | | ???????????????# ?# ###"/;### """ + #??# | | ???????????????# " # # ## """ # #??# | | ???????????????+ T ; # [ ## """ # #??# | | ???????????????# " # RR# ! ## # #### | | ???????????????# # %+[ """ ## ! # | | ???????????????######?# !%# """ ## # | | ??????????????????????# #! """ ######## | | ?????????????????????## ########????### | | ?????????????????????# #???######## | | ?????????????????????# ##### # =% | | ?????????????????????# + """ =# %* = | | ?????????????????????# ##### """ *+ ! ######## | | ?????????????????????# #???# """ #[ ######## | | ?????????????????????#######???# # ## * | | ???????????????????????????????# # ## "" | | ???????????????????????????????######## ## "Y | | ??????????????????????????????????????# ## "" " | | ??????????????????????????????????????# ## " | | ??????????????????????????????????????# ## " | | ??????????????????????????????????????# ## | | ??????????????????????????????????????# ######+# | | ?????????????????????????????????????## ##???# # | +----------------------------------------------------+ Best States ------------- Heat Dissipation 35 Energy Generation 10 Energy Capacity 250 Matter Stores 300 Matter Capacity 300 Sight Range 16 Terrain Scan Density 10 Armor Coverage 150 Evasion (%) 55 Item Schematics ----------------- None Robot Schematics ------------------ None Fabricated ------------ Nothing Alien Tech Used ----------------- None Achievements -------------- None Challenges ------------ None Game ------ Seed PhaseGravitonMount Manual? 0 Play Time 00:13:52 Cumulative 12.1 hours Start 2024.04.13 @ 10:30:17 End 2024.04.13 @ 10:42:55 Sessions 1 Manual Loads 0 Difficulty Rogue Special Mode None Game No. 11 Rogue 11 Adventurer 0 Explorer 0 Win Type - Total 0 Types 0/0/0/0/0/0/0/0/0 Lore% 8 Gallery% 16 Achievement% 14 Wizard Run 0 Options --------- Layout 0 ASCII 0 Keyboard 0 Movement Numpad Keybinds 0 Fullscreen 2 Font 24/Smallcaps Map View 76x50 Zoom Use 0% Tactical HUD 1 Map Filters NONE Filters NONE Steam 1 RUN: 00304bcf-3cf1-469c-8872-69f42e7ab2b9